[Event "Lliga Catalana DH 2023"]
[Site "Catalonia"]
[Date "2023.01.21"]
[Round "1.4"]
[White "Ortega Serra, Marc"]
[Black "Lever, Erwan"]
[Result "0-1"]
[ECO "A46"]
[WhiteElo "2313"]
[BlackElo "2180"]
[Annotator "TA"]
[PlyCount "138"]
[EventDate "2023.01.24"]
[EventType "team-tourn"]
[EventCountry "ESP"]
[SourceTitle "playchess.com"]
[Source "ChessBase"]
[SourceQuality "1"]
[TimeControl "40/5400+30:1800+30"]

{[%evp 9,138,-37,10,-34,-11,-50,-18,-48,-62,-87,-81,-78,-76,-117,-113,-99,-91,-100,-59,-96,-86,-138,-141,-120,-105,-102,-13,-14,-12,-9,-25,-11,-15,-131,-133,-131,-129,-156,-155,-156,-162,-153,-162,-249,-252,-248,-244,-226,-216,-247,-227,-227,-233,-233,-230,-233,-220,-253,-255,-268,-282,-345,-343,-328,-237,-241,-188,-191,-187,-205,-145,-154,-145,-208,-139,-138,-112,-192,-135,-163,-112,-232,-214,-338,-223,-375,-397,-418,-379,-534,-529,-467,-451,-383,-345,-543,-535,-589,-459,-568,-542,-523,-520,-892,-881,-679,-843,-807,-771,-1403,-1401,-1199,-1269,-1456,-718,-29973,-29975,-29971,-29976,-29971,-29970,-29980,-29981,-29986,-29987,-29989,-29990,-29990,-29991,-29991,-29992]} 1. d4 {[%emt 0:03:04]} Nf6 {[%emt 0:00:12]} 2. Nf3 {[%emt 0:01:03]} e6 {[%emt 0:00:06]} 3. g3 {[%emt 0:00:33]} b5 {[%emt 0:00:13][%cal Bb7b5,Bb5b4][%mdl 32]} 4. a4 {[%emt 0:03:06]} b4 {[%emt 0:00:23]} 5. a5 {[%emt 0:01:26]} Ba6 {[%emt 0:01:59]} (5... c5 $15) 6. Bg2 {[%emt 0:01:23] A46: 1 d4 Nf6 2 Nf3 e6: Torre, London and Colle Systems.} d5 {[%emt 0:00:15] [#]} 7. Ne5 $146 {[%emt 0:05:08][%cal Oc2c4]} ({Predecessor:} 7. O-O Nbd7 8. Re1 c5 9. c3 Rc8 10. Nbd2 cxd4 11. cxd4 Bd6 12. e4 dxe4 13. Ng5 {1-0 Khotenashvili,B (2502)-Zhao,X (2506) China Elite Mind blitz (Women) 2016 (4)}) 7... Nbd7 {[%emt 0:12:29]} 8. c4 {[%emt 0:21:54] The position is equal.} bxc3 $1 {[%emt 0:00:21]} (8... Bxc4 9. Nxc4 dxc4 10. Qc2 $14) 9. Nxc3 {[%emt 0:00:14]} Nxe5 {[%emt 0:01:04]} 10. dxe5 {[%emt 0:01:19]} Nd7 {[%emt 0:03:12]} 11. Qa4 {[%emt 0:01:07]} Rb8 $1 {[%emt 0:05:37]} 12. O-O {[%emt 0:11:46]} Rb4 {[%emt 0:00:40]} 13. Qc2 {[%emt 0:00:06]} (13. Qc6 $2 Bb7 $19) 13... Nxe5 {[%emt 0:01:43]} 14. b3 {[%emt 0:05:21]} Bd6 {[%emt 0:00:58]} 15. Na2 {[%emt 0:03:26] Prevents c5} ({Better is} 15. Na4) 15... Rb8 $17 {[%emt 0:03:18]} 16. Be3 {[%emt 0:00:09] [#]} c5 $1 {[%emt 0:08:57][%mdl 512]} 17. Bxc5 {[%emt 0:02:21] [#]} Qc7 {[%emt 0:08:49]} (17... Bxc5 $6 18. Qxc5 Qe7 19. Qc3 $11) (17... Rc8 $1 $17 {[%cal Rc8c5]} 18. b4 O-O) 18. Rfc1 $1 $11 {[%emt 0:02:59]} Qxc5 {[%emt 0:02:11]} 19. Qxc5 {[%emt 0:00:48]} Bxc5 {[%emt 0:00:05]} 20. Rxc5 {[%emt 0:00:05]} Kd7 {[%emt 0:08:37]} 21. Nc1 {[%emt 0:17:33]} (21. e4 $11) 21... Rhc8 {[%emt 0:02:38]} 22. Rxc8 {[%emt 0:00:05]} Rxc8 {[%emt 0:00:10]} 23. Rb1 {[%emt 0:03:49]} Rc2 $36 {[%emt 0:06:44][%mdl 2048] Black is in control.} 24. Kf1 {[%emt 0:01:53]} Nc6 {[%emt 0:05:16] Black has more active pieces. The white rooks are badly placed.} 25. Ke1 {[%emt 0:04:16]} Kd6 {[%emt 0:07:46]} ({Stronger than} 25... Nxa5 26. Ra1 $15) 26. b4 {[%emt 0:04:00] [#]} (26. Bf3 $142) 26... Nxb4 $1 $19 {[%emt 0:04:12][%mdl 576] Strongly threatening ...Na2. Deflection} 27. Kd1 {[%emt 0:00:01]} (27. Bf3 Nc6) 27... Rc4 {[%emt 0:00:20] And now ...Rd4+ would win.} 28. e3 {[%emt 0:00:02] Prevents Rd4+} Nc6 {[%emt 0:06:06]} 29. Ra1 {[%emt 0:03:40]} Rc5 {[%emt 0:01:08]} 30. Nb3 {[%emt 0:00:08]} Rc3 {[%emt 0:00:26]} 31. Nc1 {[%emt 0:01:02]} Ne5 {[%emt 0:03:08]} 32. h3 {[%emt 0:00:55]} Rc8 {[%emt 0:01:56]} 33. e4 {[%emt 0:01:17]} d4 {[%emt 0:02:36]} 34. f4 {[%emt 0:00:01]} Nc4 {[%emt 0:00:36]} 35. e5+ {[%emt 0:00:01]} Ke7 {[%emt 0:00:13] ...Ne3+ is the strong threat.} 36. Be4 {[%emt 0:00:06]} Ne3+ {[%emt 0:00:54]} 37. Ke1 {[%emt 0:00:21]} Nc2+ {[%emt 0:00:16]} 38. Bxc2 {[%emt 0:00:06]} Rxc2 {[%emt 0:00:04][%mdl 4096] Endgame KRB-KRN} 39. Nb3 {[%emt 0:00:34]} d3 {[%emt 0:01:47]} 40. Ra4 {[%emt 0:01:10]} f6 {[%emt 0:01:18]} 41. exf6+ {[%emt 0:32:03]} (41. Nd4 $17 Rc5 42. Nb3) 41... Kxf6 {[%emt 0:30:02]} 42. Rd4 {[%emt 0:00:13]} Bb5 {[%emt 0:00:40]} 43. g4 {[%emt 0:00:47]} (43. Rb4 $17 Ba6 44. Rd4) 43... h6 {[%emt 0:01:38]} (43... Re2+ $19 44. Kd1 Rh2) 44. Nd2 {[%emt 0:00:02]} Ra2 {[%emt 0:00:26]} ({Black should try} 44... Rc1+ $19 45. Kf2 Rh1) 45. g5+ {[%emt 0:00:45]} hxg5 {[%emt 0:00:02]} 46. fxg5+ {[%emt 0:00:04]} (46. Ne4+ $142 Kg6 47. Nc3) 46... Kxg5 {[%emt 0:00:24] Threatens to win with ...Kf5.} 47. Rg4+ $2 {[%emt 0:00:02]} (47. Ne4+ {was worth a try.} Kh5 48. Nc3 Rxa5 49. Re4) 47... Kf5 {[%emt 0:00:24]} 48. Rxg7 {[%emt 0:00:09]} Rxa5 {[%emt 0:00:23]} 49. h4 {[%emt 0:00:03]} (49. Kf2 $142) 49... Ra1+ {[%emt 0:00:23]} 50. Kf2 {[%emt 0:00:01]} a6 {[%emt 0:01:04][%cal Ba7a6,Ba6a5][%mdl 32]} 51. Rf7+ {[%emt 0:02:41]} Kg6 {[%emt 0:00:06]} 52. Rf3 {[%emt 0:00:08]} (52. Rf4 {keeps fighting.}) 52... Rh1 {[%emt 0:00:17] Hoping for ...Rh2+.} 53. Rg3+ {[%emt 0:00:26]} Kf7 {[%emt 0:00:40]} 54. Nf3 {[%emt 0:00:04]} Kf6 {[%emt 0:01:04] Repels Ne5} 55. Ke3 {[%emt 0:00:07]} a5 {[%emt 0:00:49]} 56. Rg5 {[%emt 0:00:19]} (56. h5 $142 Rxh5 57. Nd2) 56... Bc6 {[%emt 0:00:29] aiming for ...Bxf3.} 57. Nd2 {[%emt 0:01:08]} Rh3+ {[%emt 0:00:09]} ({Not} 57... Rxh4 58. Rxa5 Rh3+ 59. Kd4 $17) 58. Kf2 {[%emt 0:00:01]} Bd5 {[%emt 0:00:25]} 59. Rg4 {[%emt 0:00:10]} e5 {[%emt 0:01:00][%cal Be6e5,Be5e4,Be4e3,Be3e2][%mdl 32]} 60. Ra4 {[%emt 0:00:02]} Ke6 {[%emt 0:00:34]} 61. Rxa5 {[%emt 0:01:13]} Rxh4 {[%emt 0:00:12]} (61... e4 $142 62. Nf1 Rf3+ 63. Ke1 e3 64. Nxe3 {[%mdl 64] Remove Defender} Rxe3+ 65. Kd2 Rh3) 62. Ra3 {[%emt 0:01:33]} Rh2+ {[%emt 0:00:08] Black mates.} 63. Ke3 {[%emt 0:00:33]} Rh3+ {[%emt 0:00:02]} 64. Kf2 {[%emt 0:00:13]} e4 {[%emt 0:00:11]} 65. Nf1 {[%emt 0:00:26]} Rf3+ {[%emt 0:00:17]} 66. Kg2 {[%emt 0:00:10]} e3 {[%emt 0:01:15]} 67. Ra6+ {[%emt 0:00:43]} Ke5 {[%emt 0:00:12]} 68. Ra5 {[%emt 0:00:05]} e2 {[%emt 0:00:21]} 69. Nd2 {[%emt 0:00:01]} Rf8+ {[%emt 0:01:00] Weighted Error Value: White=0.48/Black=0.20 (precise)} ({Inferior is} 69... e1=B 70. Nxf3+ Kd6 71. Ra3 $11) 0-1

[Event "Lliga Catalana DH 2023"]
[Site "Catalonia"]
[Date "2023.01.21"]
[Round "1.4"]
[White "Hapala, Elisabeth"]
[Black "Tallo Dominguez, Imar"]
[Result "0-1"]
[ECO "B29"]
[WhiteElo "2096"]
[BlackElo "2274"]
[Annotator "TA"]
[PlyCount "118"]
[EventDate "2023.01.24"]
[EventType "team-tourn"]
[EventCountry "ESP"]
[SourceTitle "playchess.com"]
[Source "ChessBase"]
[SourceQuality "1"]
[TimeControl "40/5400+30:1800+30"]

{[%evp 17,118,8,26,26,36,34,27,22,79,26,27,27,26,25,20,-1,-12,-2,-4,-8,-7,-24,-21,-21,-21,-27,-20,-24,-37,-39,-33,-42,0,-41,-33,-19,-30,-16,-20,-56,-35,-31,0,-223,-200,-712,-681,-591,-192,-707,-276,-268,-270,-276,-239,-295,-281,-401,-425,-661,-648,-1148,-1109,-917,-907,-1462,-1441,-1265,-1504,-1652,-1566,-1635,-1618,-1190,-1100,-29972,-29973,-29971,-29972,-29968,-29968,-29969,-29967,-29969,-29968,-29971,-29969,-29973,-29973,-29974,-29974,-29976,-29975,-29977,-29980,-29980,-29966,-29980,-29981,-29981,-29982,-29980,-29980]} 1. e4 c5 2. Nf3 Nf6 3. e5 Nd5 4. Nc3 e6 5. Nxd5 exd5 6. d4 Nc6 7. dxc5 Bxc5 8. Bd3 d6 9. exd6 Qxd6 10. O-O {[%cal Bh1f1,Bf1e1,Be1e3,Be3f3,Bf3d3][%mdl 32] B29: Sicilian: 2 Nf3 Nf6 (Nimzowitsch Variation).} h6 {Active counter play!} 11. Re1+ Be6 12. c3 {[#] White has an edge.} O-O-O $146 (12... O-O $11 {keeps the balance.}) ({Predecessor:} 12... Bb6 13. Be3 Bxe3 14. Rxe3 O-O 15. Bc2 Rad8 16. Nd4 Bd7 17. Qd3 g6 18. Rae1 Rde8 19. Rxe8 Bxe8 {½-½ Begna,B (1998)-Wittke,V (2068) Regionalliga SW 0203 2002 (1.6)}) 13. Be3 ({White should play} 13. b4 $16 Bb6 14. b5) 13... Bxe3 14. Rxe3 d4 15. cxd4 Nxd4 16. Qa4 Nxf3+ 17. Rxf3 Kb8 18. h3 Qe5 19. Qe4 Qxe4 20. Bxe4 Rd2 21. b3 Re8 22. Rd3 Rb2 {[%cal Oe6b3]} 23. Rd4 Rc8 24. f4 {[#] And now f5 would win.} Rc5 25. b4 (25. Rd8+ $5 Rc8 26. Rxc8+ Bxc8 27. Bd5 $11) 25... Rc4 26. Rxc4 Bxc4 $15 {[%mdl 4096] Endgame KRB-KRB} 27. a3 b5 {[%cal Bb7b5,Bb5c4,Bc4c3][%mdl 32]} 28. Rd1 Kc7 {Dodges Rd8} 29. Bd5 Kb6 {Hoping for ...Ra2.} 30. Bxc4 {Black continues to play with concentration.} (30. Be4 $11 {and White stays safe.}) 30... bxc4 $11 {KR-KR} 31. Rd5 (31. Kf1) 31... c3 $19 32. Rc5 Rb3 (32... c2 {Threatens to win with ...Rb1+.} 33. Kh2 a5) 33. a4 $2 (33. Rc8) 33... Rxb4 $2 (33... a5 34. Rb5+ Kc6 35. Rc5+ Kd6) 34. Rxc3 Rxf4 {[%cal Oa7a5]} (34... Rxa4 35. Rb3+ Kc6 36. Rc3+ Kd6 37. Rd3+ Ke7 38. Re3+ Kf6 39. Rc3 $17) 35. Rg3 g6 36. Rb3+ Ka5 37. Rb7 (37. Rb1 {is a better defense.}) 37... a6 {[%cal Ba7a6,Ba6a5,Ba5a4,Ba4a3][%mdl 32]} ({Worse is} 37... Rxa4 38. Rxa7+ Kb5 39. Rxf7 $11) 38. Ra7 (38. g3 $142 Rf5 39. g4) 38... Rf6 ({Inferior is} 38... Rxa4 39. Rxf7 Rb4 40. Rf6 $17) ({Stronger than} 38... Kxa4 39. Rxa6+ Kb5 40. Ra7 $15) 39. g4 Kxa4 40. Re7 a5 {[#] aiming for ...Kb3.} 41. Kg2 Kb3 {...a4 is the strong threat.} 42. Rb7+ Ka3 43. Kg3 a4 44. h4 Ka2 45. h5 a3 {...g5 would be deadly.} 46. hxg6 fxg6 {[%cal Bf7g6,Bg6g5][%mdl 32] Black mates.} 47. Kh4 Rf3 48. Rb6 g5+ 49. Kh5 Rh3+ 50. Kg6 Rb3 51. Rf6 Rg3 52. Kh5 Kb3 53. Rb6+ Kc2 54. Ra6 Kb2 55. Rb6+ Rb3 56. Rf6 Rh3+ 57. Kg6 a2 58. Rf2+ Kb3 59. Rf1 Rh2 {Weighted Error Value: White=0.93/Black=0.31} 0-1

[Event "Lliga Catalana DH 2023"]
[Site "Catalonia"]
[Date "2023.01.21"]
[Round "1.5"]
[White "Pinero Fernandez, Xavier"]
[Black "Gomila Benejam, Teodoro"]
[Result "1-0"]
[ECO "D02"]
[WhiteElo "2279"]
[BlackElo "2045"]
[Annotator "TA"]
[PlyCount "100"]
[EventDate "2023.01.24"]
[EventType "team-tourn"]
[EventCountry "ESP"]
[SourceTitle "playchess.com"]
[Source "ChessBase"]
[SourceQuality "1"]
[TimeControl "40/5400+30:1800+30"]

{[%evp 9,100,6,18,0,0,0,0,1,9,9,39,5,72,64,83,87,111,88,95,95,111,104,112,112,133,118,116,126,113,113,121,113,121,129,126,129,127,129,143,141,202,200,202,202,212,197,227,219,227,225,234,226,289,302,325,321,382,372,378,372,394,404,399,375,754,749,725,733,731,737,731,723,695,688,673,633,718,701,650,752,725,648,1261,1237,1147,1104,1006,920,12837,12835,12841,12839,12844]} 1. d4 Nf6 2. Nf3 e6 3. c3 d5 4. Bf4 Bd6 5. e3 c5 6. Bb5+ {D02: 1 d4 d5 2 Nf3 sidelines, including 2...Nf6 3 g3 and 2...Nf6 3 Bf4.} Nc6 $1 7. Bxc6+ bxc6 8. Qa4 {The position is equal.} Bxf4 9. exf4 Qd6 10. Ne5 {[#]} c4 $146 (10... cxd4 $11 {remains equal.} 11. cxd4 O-O) ({Predecessor:} 10... cxd4 11. cxd4 O-O 12. Qa3 Qxa3 13. Nxa3 Rb8 14. b3 Ba6 15. Nxc6 Rb7 16. f3 Rc8 {½-½ Cizek,A (2270)-Tuma,J (2271) CZE-chT2D 1112 2011 (1)}) 11. b3 $16 (11. Qxc6+ Qxc6 12. Nxc6 Bd7 $11) (11. Nxc6 $2 Bd7 12. Qb4 Qxc6 $19) 11... cxb3 12. axb3 (12. Qxc6+ $2 Qxc6 13. axb3 Qb5 $19) 12... Bd7 13. Qa3 Qxa3 14. Rxa3 (14. Nxa3 Ke7 $14) 14... Ke7 15. Nd2 Rhc8 16. Nd3 {White has more active pieces.} Be8 17. Ke2 Nd7 18. Rha1 Rc7 19. Ra5 f6 20. b4 Bg6 21. Nc5 Nxc5 22. Rxc5 Kd7 {Black is weak on the dark squares} 23. Rca5 Bh5+ 24. Ke3 Kd6 (24... h6 $16 25. h4 Bg6) 25. Nc4+ $18 dxc4 26. Rxh5 {[%mdl 4096] Endgame KRR-KRR} g6 27. Rc5 Re8 28. Ra6 Kd7 29. Ke4 (29. Rxc4 Rb8 30. g3 Rb6) 29... h6 30. Rxc4 g5 31. Rc5 Rg8 32. g3 f5+ 33. Ke5 gxf4 34. Kxf4 (34. gxf4 Rg1 35. Ra2 a6 $16) 34... h5 35. Rca5 h4 36. Rxa7 ({Not} 36. gxh4 Rg4+ 37. Kf3 Rxh4 $16) 36... hxg3 $2 (36... Rg4+ 37. Kf3 Rxa7 38. Rxa7+ Kd6) 37. fxg3 {White is clearly winning.} Rg4+ 38. Kf3 Rxa7 39. Rxa7+ {KR-KR} Kd6 40. Ra5 Re4 {[#]} 41. Re5 $1 Rg4 42. h4 Rg7 43. Ra5 Rh7 44. Kf4 Rg7 45. b5 {[%cal Bb4b5,Bb5b6][%mdl 32]} c5 46. Ra6+ Kd5 47. dxc5 e5+ 48. Kxf5 {[#] aiming for c6.} Rxg3 49. b6 Kc6 50. Ra7 Kd5 {Black got outplayed after the opening.   Weighted Error Value: White=0.02 (flawless) /Black=0.18 (very precise)} 1-0

[Event "Lliga Catalana DH 2023"]
[Site "Catalonia"]
[Date "2023.01.21"]
[Round "1.5"]
[White "Montilla Carrillo, Esteban"]
[Black "Escandell Mari, Juan Carlos"]
[Result "1/2-1/2"]
[ECO "E16"]
[WhiteElo "2121"]
[BlackElo "2159"]
[Annotator "TA"]
[PlyCount "98"]
[EventDate "2023.01.24"]
[EventType "team-tourn"]
[EventCountry "ESP"]
[SourceTitle "playchess.com"]
[Source "ChessBase"]
[SourceQuality "1"]
[TimeControl "40/5400+30:1800+30"]

{[%evp 20,98,0,16,20,6,22,-30,16,12,29,0,35,0,11,-5,14,-16,-9,-56,-56,-54,-52,-92,-60,-56,-44,-153,-146,-156,-112,-180,-143,-220,-134,-127,-113,-100,-83,-95,-79,-184,-183,-211,-198,-199,-197,-201,-206,-170,-204,-176,-71,-88,-43,-62,-54,-47,-29,-201,-25,-36,2,2,2,5,190,180,166,6,2,0,0,0,0,0,0,0,0,0,0]} 1. d4 {[%emt 0:00:06]} Nf6 {[%emt 0:00:12]} 2. c4 {[%emt 0:00:17]} e6 {[%emt 0:00:07]} 3. Nf3 {[%emt 0:00:08]} b6 {[%emt 0:00:09]} 4. g3 {[%emt 0:00:14]} Bb7 {[%emt 0:00:42]} 5. Bg2 {[%emt 0:00:29]} c5 {[%emt 0:00:37]} 6. d5 {[%emt 0:01:52]} exd5 {[%emt 0:00:23]} 7. Nh4 {[%emt 0:00:10]} g6 {[%emt 0:00:39]} 8. cxd5 {[%emt 0:01:34]} Bg7 {[%emt 0:02:26]} 9. Nc3 {[%emt 0:01:34]} d6 {[%emt 0:00:58]} 10. O-O {[%emt 0:01:07]} O-O {[%emt 0:00:20]} 11. e4 {[%emt 0:01:31]} Re8 {[%emt 0:03:17] E16: Queen's Indian: 4 g3 Bb7 5 Bg2 Bb4+.} 12. Re1 {[%emt 0:01:26]} Na6 {[%emt 0:03:26] [#]} 13. Bd2 $146 {[%emt 0:13:58]} (13. Bf4 $142) ({Predecessor:} 13. Nf3 Nc7 14. a4 a6 15. Rb1 b5 16. axb5 Nxb5 17. Qd3 Qc7 18. Bf4 c4 19. Qc2 {½-½ Bentel,R (2218)-Genov,P (2419) GER-CupT 2122 Round2 (1) 2022 (2.2)}) 13... Nc7 {[%emt 0:04:06]} (13... c4 $142) 14. a4 {[%emt 0:01:15]} a6 {[%emt 0:08:32][%cal Ba7a6,Ba6b5,Bb5b4][%mdl 32]} 15. Qc1 {[%emt 0:17:28]} Ng4 {[%emt 0:18:27]} 16. Qd1 {[%emt 0:06:32]} Nf6 {[%emt 0:02:23]} 17. Qb3 {[%emt 0:04:09]} Rb8 {[%emt 0:00:14]} 18. h3 {[%emt 0:05:48]} (18. Qxb6 Bxd5 19. Qa5 Ba8 $17) 18... b5 {[%emt 0:01:52]} 19. axb5 {[%emt 0:10:33]} (19. Qc2 $11 {deserves consideration.}) 19... axb5 $15 {[%emt 0:02:48]} 20. Qc2 {[%emt 0:02:01]} ({Much weaker is} 20. Nxb5 Bc8 21. Ba5 (21. Ra5 $2 Bd7 $19) 21... Rxb5 $17) 20... b4 {[%emt 0:02:20]} 21. Ne2 {[%emt 0:01:57]} Ra8 {[%emt 0:09:08]} 22. Rxa8 {[%emt 0:00:57]} Qxa8 {[%emt 0:00:20]} (22... Nxa8 $5 23. Nc1 Nb6 $15) 23. f3 {[%emt 0:06:05]} (23. Nc1 $1 $15) 23... Nb5 {[%emt 0:02:11][%cal Of6d5]} 24. Bf1 {[%emt 0:01:09]} Nd7 {[%emt 0:03:06]} 25. Rd1 {[%emt 0:05:07]} (25. Bf4 $17 {might work better.}) 25... Qa5 {[%emt 0:09:02]} 26. Be1 {[%emt 0:03:35]} (26. Ng2 $17) 26... Nd4 {[%emt 0:10:10]} 27. Nxd4 {[%emt 0:00:06]} Bxd4+ {[%emt 0:00:08]} ({Much worse is} 27... cxd4 $6 28. Qc4 $11 (28. Qb3 Be5 $11)) 28. Bf2 {[%emt 0:01:32]} Bg7 {[%emt 0:03:04]} 29. Ng2 {[%emt 0:03:38]} Ne5 {[%emt 0:03:16]} 30. Be2 {[%emt 0:02:22]} (30. Ne1 $17 {was worth a try.}) 30... Ba6 $19 {[%emt 0:00:22][%cal Ob4b3]} 31. f4 {[%emt 0:00:49] [#]} b3 $1 {[%emt 0:03:09][%mdl 512]} 32. Qd2 {[%emt 0:01:23]} Qxd2 {[%emt 0:00:12]} 33. Rxd2 {[%emt 0:00:02][%cal Of4e5]} Nc4 {[%emt 0:01:23]} 34. Bxc4 {[%emt 0:00:36]} Bxc4 {[%emt 0:00:03]} 35. e5 {[%emt 0:00:34]} dxe5 {[%emt 0:02:36]} (35... Bb5 $19 {has better winning chances.} 36. exd6 Rc8) 36. Bxc5 $17 {[%emt 0:00:53]} exf4 {[%emt 0:01:38]} 37. Nxf4 {[%emt 0:00:26]} Re1+ {[%emt 0:01:20]} 38. Kf2 {[%emt 0:00:19]} Rf1+ {[%emt 0:01:30]} (38... Rc1 $5 {[%cal Rc1c2]} 39. Ke3 Bb5 $15) 39. Kg2 $2 {[%emt 0:00:02] [#]} (39. Ke3 $11) 39... Rb1 $2 {[%emt 0:00:00]} (39... Rc1 $1 $19 {[%cal Rc1c2] ...Rc2 is the strong threat.} 40. d6 Rc2 41. Rxc2 bxc2) 40. Ba3 $11 {[%emt 0:00:00]} Ra1 {[%emt 0:02:23][%cal Oa1a3] White must now prevent ...Rxa3!} 41. d6 {[%emt 0:36:03] Threatens to win with d7.} Bf6 {[%emt 0:31:03][%cal Oa1a3] This pair of bishops is nice.} 42. Nd5 {[%emt 0:01:06]} Bxd5+ {[%emt 0:00:56]} (42... Bg5 $2 43. Ne7+ Bxe7 44. dxe7 Bf1+ 45. Kf3 $18) (42... Bd8 $1 $11 {and Black is okay.}) 43. Rxd5 {[%emt 0:00:02][%mdl 4096] Endgame Strongly threatening d7. KRB-KRB} Kg7 {[%emt 0:00:30]} 44. d7 $2 {[%emt 0:00:20]} ({White should try} 44. Kf3 $18) 44... Bd8 {[%emt 0:00:07] The position is equal.} (44... Rxa3 $2 45. bxa3 Bd8 46. Rb5 $18) 45. Bc5 {[%emt 0:01:09]} f5 {[%emt 0:00:42]} 46. Rd3 {[%emt 0:00:31]} Ra5 {[%emt 0:00:39]} 47. Bd4+ {[%emt 0:00:33]} Kf7 {[%emt 0:00:02]} 48. Rxb3 {[%emt 0:00:18]} Rd5 {[%emt 0:00:12][%csl LRd4,LRd7]} 49. Bf2 {[%emt 0:00:43]} Rxd7 {[%emt 0:00:08] What a bad dream for Black.   Weighted Error Value: White=0.33/Black=0.24 (precise)} 1/2-1/2